bitfinex/quotes_ETHUSD_20220309
["timestamp","ask_amount","ask_price","bid_price","bid_amount"]
[1646821341430,0.89184564,2752.2,2751.7,0.029168]
[1646821341628,0.89184564,2752.2,2751.7,0.058336]
[1646821341830,0.90923,2752.1,2751.7,0.058336]
[1646821342432,1.20923,2752.1,2751.7,0.058336]
[1646821342629,0.3,2752.1,2751.7,0.058336]
[1646821342930,1.69184592,2752.2,2751.8,0.058336]
[1646821343228,0.8,2752.2,2751.8,0.058336]
[1646821343430,0.802584,2752.2,2751.8,0.058336]
[1646821343628,0.802584,2752.2,2751.8,0.029168]
[1646821344266,0.8,2752.2,2751.8,0.029168]
[1646821344466,0.80258409,2752.2,2751.8,0.058336]
[1646821344867,0.80258409,2752.2,2751.9,0.029168]
[1646821345267,0.80258409,2752.2,2752.0,0.029168]
[1646821345470,0.8,2752.2,2751.8,0.029168]
[1646821345670,2.2032,2752.2,2752.0,0.029168]
[1646821345871,2.2032,2752.2,2751.4,0.00277487]
[1646821345872,2.20578414,2752.2,2751.4,0.00277487]
[1646821346072,0.90926,2752.0,2751.6,0.029168]
[1646821346272,1.20926,2752.0,2751.6,0.029168]
[1646821348521,5.59852188,2752.0,2751.2,0.04984768]
[1646821348721,5.59852188,2752.0,2751.3,0.029168]
[1646821348722,1.22047892,2751.5,2751.3,0.029168]
[1646821348920,1.22047892,2751.5,2751.2,0.07901568]
[1646821350923,1.22047892,2751.5,2751.2,0.04984768]
[1646821351324,1.4032,2751.4,2751.2,0.04984768]
[1646821351569,1.7032,2751.4,2751.2,0.04984768]
[1646821351969,1.7032,2751.4,2751.2,0.02067968]
[1646821352670,1.7032,2751.4,2751.2,0.04984768]
[1646821353071,0.3,2751.4,2751.3,0.029168]
[1646821353271,1.7032,2751.7,2751.3,0.029168]
[1646821353471,1.7032,2751.7,2751.4,0.029168]
[1646821353669,1.7032,2751.7,2751.4,0.058336]
[1646821354070,2.61776089,2751.7,2751.4,0.058336]
[1646821354471,3.61776089,2751.7,2751.4,0.058336]
[1646821354871,2.7032,2751.7,2751.4,0.058336]
[1646821355341,2.7032,2751.7,2750.8,0.0186464]
[1646821355342,5.0,2751.4,2750.8,0.0186464]
[1646821355539,5.0,2751.4,2750.8,0.0372928]
[1646821355540,6.0,2751.2,2750.8,0.0372928]
[1646821355735,6.0,2751.2,2750.6,0.0163616]
[1646821355736,5.5,2750.8,2750.6,0.0163616]
[1646821355933,0.445,2750.7,2750.6,0.0163616]
[1646821356134,4.0,2750.6,2750.4,0.07244101]
[1646821356333,1.56803571,2750.5,2750.4,0.05680764]
[1646821356534,2.06803571,2750.5,2750.4,0.05680764]
[1646821357735,3.47123571,2750.5,2750.4,0.05680764]
[1646821358140,5.38102571,2750.5,2750.4,0.05680764]
[1646821358340,3.33289744,2750.5,2750.4,0.05680764]
[1646821358539,1.97810744,2750.5,2750.4,0.05680764]
[1646821358739,0.57490744,2750.5,2750.4,0.05680764]
[1646821359377,1.78877238,2750.5,2750.4,0.05680764]
[1646821359576,2.08877238,2750.5,2750.4,0.05680764]
[1646821359977,1.58877238,2750.5,2750.4,0.05680764]
[1646821361182,0.37490744,2750.5,2750.4,0.05680764]
[1646821361882,0.37490744,2750.5,2750.4,0.06003124]
[1646821362084,0.07490744,2750.5,2750.4,0.06003124]
[1646821362284,1.05434107,2750.5,2750.4,0.06003124]
[1646821362485,1.12924851,2750.5,2750.4,0.06003124]
[1646821362687,0.07490744,2750.5,2750.4,0.06003124]
[1646821362922,0.07490744,2750.6,2750.4,0.06003124]
[1646821363122,0.98467744,2750.5,2750.4,0.06003124]
[1646821363722,1.94873255,2750.5,2750.4,0.06392764]
[1646821364024,6.058,2750.3,2749.9,0.0829562]
[1646821364224,6.058,2750.3,2749.8,0.30371074]
[1646821364225,0.90989,2750.1,2749.8,0.00883504]
[1646821364423,4.01990744,2750.0,2749.8,0.00883504]
[1646821364622,1.47810744,2749.9,2749.8,0.00883504]
[1646821364827,1.92310744,2749.9,2749.8,0.00883504]
[1646821365427,0.81990744,2749.9,2749.8,0.00883504]
[1646821365626,0.81990744,2749.9,2749.3,0.01767008]
[1646821365931,0.745,2749.9,2749.4,1.44886273]
[1646821366126,1.7032,2749.9,2749.4,1.44886273]
[1646821366769,0.07492657,2749.8,2749.3,0.06674768]
[1646821367369,0.07492657,2749.8,2749.5,0.00403632]
[1646821367569,3.70264298,2749.9,2749.5,0.00403632]
[1646821367969,3.70264298,2749.9,2749.5,0.070784]
[1646821367970,2.7032,2749.9,2749.5,0.070784]
[1646821368170,2.7032,2749.9,2749.5,0.06674768]
[1646821368575,2.7032,2749.9,2749.6,0.00403626]
[1646821368872,2.7032,2749.9,2749.6,0.07078394]
[1646821369472,2.7032,2749.9,2749.6,0.06674768]
[1646821369672,2.7032,2749.9,2749.6,0.07081564]
[1646821370522,1.4032,2749.9,2749.6,0.07081564]
[1646821370727,1.4032,2749.9,2749.6,0.06674768]
[1646821370926,0.0023225,2750.3,2749.6,0.07081564]
[1646821371228,0.07724722,2750.3,2749.6,0.07081564]
[1646821371426,1.06026395,2750.3,2749.6,0.07081564]
[1646821371625,0.07492472,2750.2,2749.6,0.07081564]
[1646821371823,1.07492472,2750.2,2749.6,0.06674768]
[1646821372024,2.2032,2750.4,2749.6,0.06674768]
[1646821372225,0.07724324,2750.3,2749.8,0.00393355]
[1646821373125,0.07724324,2750.3,2749.8,0.06674768]
[1646821373126,0.07492057,2750.3,2749.8,0.06674768]
[1646821373327,0.07710419,2750.3,2749.8,0.07063951]
[1646821373926,1.48030419,2750.3,2749.8,0.07063951]
[1646821374172,1.4032,2750.3,2749.8,0.06674768]
[1646821374575,1.40538362,2750.3,2749.8,0.07063951]
[1646821375376,1.4032,2750.3,2749.8,0.06674768]
[1646821375677,1.40538362,2750.3,2749.8,0.07049943]
[1646821376679,1.4032,2750.3,2749.8,0.06674768]
[1646821376878,1.40540375,2750.3,2749.8,0.07050547]
[1646821377833,1.40540375,2750.3,2749.8,0.06674768]
[1646821377834,1.4032,2750.3,2749.8,0.06674768]
[1646821378022,1.4032,2750.3,2749.9,0.95069973]
[1646821378023,1.40540375,2750.3,2749.9,0.95069973]
[1646821378424,0.00220375,2750.3,2749.9,0.95069973]
[1646821379027,0.5,2750.4,2749.9,1.01744741]
[1646821379423,0.00220379,2750.3,2749.9,1.01744741]
[1646821380325,0.5,2750.4,2749.9,1.01744741]
[1646821380528,0.00220088,2750.3,2749.9,1.01744741]
[1646821381569,0.07492286,2750.4,2749.9,1.01744741]
[1646821381769,0.00220088,2750.3,2749.9,1.01744741]
[1646821382569,0.07492286,2750.4,2749.9,0.06674768]
[1646821382970,0.00220088,2750.3,2749.9,0.06674768]
[1646821383771,0.07492286,2750.4,2749.9,0.06674768]
[1646821384170,0.00220129,2750.3,2749.9,0.06674768]
[1646821384973,0.07492286,2750.4,2749.9,0.06674768]
[1646821385175,1.9032,2750.6,2750.1,3.0]
[1646821385427,0.00220129,2750.3,2750.2,3.8625]
[1646821385627,0.5,2750.6,2750.3,5.39630311]
[1646821386224,0.5,2750.6,2750.3,5.41397319]
[1646821386824,0.5,2750.6,2750.3,0.91397319]
[1646821387025,0.5,2750.6,2750.3,0.01975745]
[1646821387824,0.07491961,2750.5,2750.3,0.01975745]
[1646821390073,0.07712086,2750.5,2750.3,0.01975745]
[1646821390475,0.07712086,2750.5,2750.4,0.91323791]
[1646821391076,0.07491961,2750.5,2750.4,0.91323791]
[1646821391276,0.07491961,2750.5,2750.4,0.93090799]
[1646821391678,0.00236877,2750.6,2750.4,0.93090799]
[1646821391881,0.5,2750.5,2750.4,0.93090799]
[1646821392077,0.5,2750.5,2750.4,0.01767008]
[1646821392477,0.57491799,2750.5,2750.4,0.01767008]
[1646821397482,0.57491799,2750.5,2750.4,1.47378435]
[1646821398082,0.57491799,2750.5,2750.4,4.97378435]
[1646821398283,0.5,2750.5,2750.4,4.97378435]
[1646821398484,0.57491871,2750.5,2750.4,4.97378435]
[1646821398884,0.5,2750.5,2750.4,5.33628435]
[1646821399488,0.57491275,2750.5,2750.4,5.33628435]
[1646821399987,0.00220004,2750.6,2750.5,5.92508725]
[1646821400189,0.00220004,2750.6,2750.5,12.42508725]
[1646821400431,0.00220004,2750.6,2750.5,8.92508725]
[1646821400630,0.5,2750.8,2750.5,8.92508725]
[1646821400929,0.00220004,2750.7,2750.5,1.92508725]
[1646821401331,0.50220004,2750.7,2750.5,1.92508725]
[1646821401529,0.50220004,2750.7,2750.6,1.0126399]
[1646821402029,0.5,2750.7,2750.6,1.0126399]
[1646821402246,0.50219589,2750.7,2750.6,1.0126399]
[1646821402830,0.50219589,2750.7,2750.5,1.92508725]
[1646821403033,0.5,2750.7,2750.5,1.92508725]
[1646821403235,0.529168,2750.7,2750.5,1.92508725]
[1646821403632,0.5,2750.7,2750.5,1.92508725]
[1646821404675,0.50219589,2750.7,2750.5,1.92508725]
[1646821405481,0.5,2750.7,2750.5,1.92508725]
[1646821405681,0.50219648,2750.7,2750.5,1.73257853]
[1646821405883,0.50219648,2750.7,2750.5,1.72057853]
[1646821406683,0.5,2750.7,2750.5,1.72057853]
[1646821407085,0.50219648,2750.7,2750.5,1.72057853]
[1646821407938,0.5,2750.7,2750.5,1.72057853]
[1646821408138,0.50219648,2750.7,2750.5,1.72057853]
[1646821409143,0.5,2750.7,2750.5,1.72057853]
[1646821409344,0.5021964,2750.7,2750.5,1.72057853]
[1646821410355,0.5021964,2750.7,2750.6,3.0]
[1646821410356,0.5,2750.7,2750.6,3.0]
[1646821410549,0.5021964,2750.7,2750.5,2.08307853]
[1646821411596,0.5,2750.7,2750.5,2.08307853]
[1646821411798,0.5021964,2750.7,2750.5,2.08307853]
[1646821412401,0.5021964,2750.7,2750.5,5.08307853]
[1646821412601,0.5,2750.7,2750.6,11.4325]
[1646821412800,0.029168,2751.2,2750.7,6.0]
[1646821413006,1.0,2751.5,2751.0,3.0]
[1646821413801,1.0,2751.5,2750.9,0.92742319]
[1646821414003,0.66507672,2751.6,2750.9,0.92742319]
[1646821414202,0.029168,2751.3,2750.9,0.92742319]
[1646821414403,0.0021964,2751.4,2750.9,0.92742319]
[1646821414606,0.029168,2751.3,2750.9,0.92742319]
[1646821414802,0.0021964,2751.4,2750.9,0.92742319]
[1646821415007,0.029168,2751.4,2750.9,0.92742319]
[1646821415203,0.029168,2751.4,2750.7,0.3625]
[1646821415631,0.029168,2751.4,2750.8,3.0]
[1646821416027,0.029168,2751.4,2750.7,11.4325]
[1646821416227,0.029168,2751.4,2750.7,0.3625]
[1646821416629,0.00219635,2751.2,2750.7,0.3625]
[1646821416828,0.00219635,2751.2,2750.7,11.4325]
[1646821417430,0.029168,2751.4,2750.7,0.3625]
[1646821417631,0.029168,2751.3,2750.7,0.3625]
[1646821417832,0.00219635,2751.1,2750.7,0.3625]
[1646821418338,0.00219635,2751.1,2750.7,11.4325]
[1646821418532,0.00219635,2751.1,2750.6,2.08520151]
[1646821418732,0.5,2751.5,2750.6,2.08520151]
[1646821418932,0.00219635,2751.0,2750.6,2.08520151]
[1646821419775,9.635e-05,2751.0,2750.6,5.08520151]
[1646821419984,0.1817,2751.7,2750.6,5.08520151]
[1646821419985,0.66565868,2751.8,2750.9,3.0]
[1646821420185,0.07490797,2751.7,2751.3,3.0]
[1646821420387,9.69391873,2752.6,2751.4,1.92126958]
[1646821420388,0.07490797,2751.6,2751.4,1.92126958]
[1646821420582,0.88926188,2752.5,2751.5,1.92126958]
[1646821420583,0.66565868,2752.3,2751.5,1.92126958]
[1646821420785,1.08496742,2752.1,2751.6,1.47626958]
[1646821420988,0.07490171,2752.0,2751.2,2.251]
[1646821421282,0.07490171,2752.0,2751.3,1.48803848]
[1646821421283,0.74056039,2752.0,2751.3,1.48803848]
[1646821421482,0.74056039,2752.0,2751.4,1.48803848]
[1646821421682,0.74056039,2752.0,2751.1,4.18337121]
[1646821421884,0.74056039,2752.0,2751.2,1.48826747]
[1646821422685,0.5,2751.6,2751.2,1.48826747]
[1646821422929,0.5,2751.6,2750.7,2.78053035]
[1646821422930,3.57490171,2751.5,2750.7,2.78053035]
[1646821423132,0.07490171,2751.4,2750.8,1.48794548]
[1646821423331,1.04589644,2751.3,2750.9,1.48794548]
[1646821423534,1.04589644,2751.3,2751.0,1.48794548]
[1646821423535,0.07490171,2751.2,2751.0,1.48794548]
[1646821423730,1.00363134,2750.8,2750.5,6.28390888]
[1646821423931,0.0026319,2751.2,2750.6,1.4880156]
[1646821424731,0.07491754,2751.5,2750.6,1.4880156]
[1646821424932,0.00263189,2751.0,2750.6,1.4880156]
[1646821425132,0.07754943,2751.0,2750.6,1.4880156]
[1646821425932,0.07491754,2751.0,2750.6,1.4880156]
[1646821426137,0.07754933,2751.0,2750.6,1.4880156]
[1646821426335,0.5,2750.9,2750.6,1.4880156]
[1646821426590,0.00263179,2751.0,2750.9,0.49788751]
[1646821426988,0.00263179,2751.0,2750.9,1.98590311]
[1646821427185,0.74057151,2751.6,2750.9,1.98590311]
[1646821427386,0.88926188,2751.9,2751.0,1.4880156]
[1646821427387,0.0026319,2751.1,2751.0,1.4880156]
[1646821427687,1.2216023,2751.1,2751.0,1.4880156]
[1646821427889,1.29651513,2751.1,2751.0,1.4880156]
[1646821428089,1.29651513,2751.1,2750.9,0.49788751]
[1646821428391,3.57491283,2751.0,2750.9,0.49788751]
[1646821428588,0.07491283,2751.0,2750.9,0.49788751]
[1646821429387,0.57491283,2751.0,2750.9,0.49788751]
[1646821430534,0.07491283,2751.0,2750.9,0.49788751]
[1646821431734,0.57491283,2751.0,2750.9,0.49788751]
[1646821432134,0.07491283,2751.0,2750.9,0.49788751]
[1646821432335,0.57491283,2751.0,2750.9,0.49788751]
[1646821433842,0.57491283,2751.0,2750.9,1.97957514]
[1646821438126,0.5,2751.0,2750.9,1.97957514]
[1646821439129,0.5,2751.0,2750.9,0.49788751]
[1646821439329,0.5,2751.0,2750.4,0.01767008]
[1646821439330,1.13658546,2750.5,2750.4,0.01767008]
[1646821439533,1.21151838,2750.5,2750.4,0.01767008]
[1646821439732,1.21151838,2750.5,2750.4,1.50609767]
[1646821440532,1.13658546,2750.5,2750.4,0.01767008]
[1646821441038,1.21152034,2750.5,2750.4,0.01767008]
[1646821441236,1.21152034,2750.5,2750.4,1.50619497]
[1646821441678,1.71152034,2750.5,2750.4,1.50619497]
[1646821441880,1.71152034,2750.5,2750.4,0.01767008]
[1646821442477,1.71152034,2750.5,2750.4,1.50656855]
[1646821445429,0.57493488,2750.5,2750.4,1.50656855]
[1646821448535,0.0138,2751.0,2750.6,0.64891151]
[1646821448734,0.07491837,2750.9,2750.7,5.28889847]
[1646821448933,0.07491837,2750.9,2750.8,1.48889847]
[1646821450187,0.07491837,2750.9,2750.8,4.98889847]
[1646821450388,0.57491837,2750.9,2750.8,4.98889847]
[1646821451587,0.57491837,2750.9,2750.8,4.97014438]
[1646821454640,0.01643655,2751.0,2750.9,16.9325]
[1646821454941,1.0,2751.8,2751.1,0.3625]
[1646821455138,1.0,2751.8,2751.2,3.391668]
[1646821455336,1.0,2751.8,2751.2,0.691668]
[1646821455542,1.0,2751.8,2751.3,3.5]
[1646821455744,1.0,2751.8,2751.4,11.7325]
[1646821455942,1.38362998,2752.4,2752.1,1.09229432]
[1646821455943,0.66606876,2752.4,2752.1,1.09229432]
[1646821456143,0.66606876,2752.6,2752.1,1.09229432]
[1646821457003,0.5,2752.2,2752.1,1.09229432]
[1646821457802,0.5,2752.2,2751.9,3.8625]
[1646821458002,0.0026366,2752.5,2751.9,4.1625]
[1646821458402,0.66606876,2752.7,2751.9,4.1625]
[1646821458601,0.0026366,2752.2,2751.9,4.1625]
[1646821458801,0.0026366,2752.2,2752.1,1.04764453]
[1646821459002,0.0026366,2752.2,2751.9,0.3]
[1646821459205,0.5026366,2752.2,2751.8,0.329168]
[1646821459404,0.5026366,2752.2,2751.8,0.029168]
[1646821459602,0.5,2752.2,2751.8,0.029168]
[1646821459806,0.66606876,2752.7,2752.0,3.0]
[1646821460005,0.6647299,2753.2,2752.6,3.0]
[1646821460208,3.0,2753.8,2752.7,15.406668]
[1646821460441,0.88926188,2754.4,2753.3,0.029168]
[1646821460643,0.015751,2754.1,2753.5,0.029168]
[1646821460839,0.88926188,2754.5,2754.0,0.93366172]
[1646821461040,7.36,2754.6,2754.1,0.474168]
[1646821461238,7.36,2754.6,2754.1,0.774168]
[1646821461436,7.36,2754.6,2754.1,1.6819734]
[1646821461836,7.36,2754.6,2754.1,1.2369734]
[1646821462036,1.06483091,2754.8,2754.1,5.0994734]
[1646821462240,0.00263001,2754.5,2754.2,0.3625]
[1646821462545,0.00263001,2754.5,2754.3,3.5]
[1646821462756,0.00263001,2754.5,2754.3,3.8]
[1646821463138,0.00263001,2754.5,2753.9,0.445]
[1646821463139,0.5,2754.4,2753.8,0.029168]
[1646821463736,0.00263001,2754.5,2753.8,0.029168]
[1646821464180,1.04485578,2754.4,2753.8,0.029168]
[1646821464380,3.0,2754.7,2753.8,0.9371951]
[1646821464381,3.00804714,2754.7,2753.8,0.9371951]
[1646821464581,3.0,2754.7,2754.0,0.029168]
[1646821464982,0.00804714,2755.3,2754.0,0.029168]
[1646821465188,3.0,2755.1,2754.0,0.029168]
[1646821465385,1.22114699,2754.9,2754.0,0.029168]
[1646821465786,0.00263001,2754.7,2754.0,0.029168]
[1646821466685,1.22114699,2754.9,2754.0,0.029168]
[1646821467088,0.00263001,2754.5,2754.0,0.029168]
[1646821467487,1.03662569,2754.4,2754.0,0.029168]
[1646821467692,1.03662569,2754.4,2753.8,0.029168]
[1646821467934,3.00804714,2754.3,2753.8,0.029168]
[1646821468333,3.01067715,2754.3,2753.8,0.029168]
[1646821469130,3.00804714,2754.3,2753.8,0.029168]
[1646821469331,0.00263001,2754.2,2753.8,0.029168]
[1646821469531,1.2013339,2753.9,2753.8,0.029168]
[1646821469734,1.2013339,2753.9,2753.5,0.029168]
[1646821470737,0.00263001,2753.8,2753.5,0.029168]
[1646821471339,2.01067715,2754.6,2753.5,0.029168]
[1646821471784,0.91666452,2754.4,2753.6,1.23202444]
[1646821471984,0.91666452,2754.4,2753.8,0.029168]
[1646821473285,0.91666452,2754.4,2753.5,0.029168]
[1646821473488,1.36166452,2754.4,2753.5,0.029168]
[1646821473686,1.2066281,2753.6,2753.5,0.029168]
[1646821473887,1.2066281,2753.6,2753.2,0.029168]
[1646821474088,1.2066281,2753.6,2752.9,0.029168]
[1646821478040,2.2170281,2753.6,2752.9,0.029168]
[1646821481390,0.89789701,2753.1,2752.9,0.029168]
[1646821481587,0.89789701,2753.1,2752.3,4.45903895]
[1646821481788,0.89789701,2753.1,2752.7,0.029168]
[1646821482690,0.89789701,2753.1,2752.4,0.029168]
[1646821483135,1.34289701,2753.1,2752.2,0.029168]
[1646821483328,2.25185701,2753.1,2752.0,0.029168]
[1646821483529,3.42515701,2753.1,2752.0,0.029168]
[1646821483729,0.3,2753.0,2752.0,0.029168]
[1646821483927,0.445,2752.9,2752.0,0.029168]
[1646821484127,1.18258953,2752.1,2752.0,0.029168]
[1646821484327,1.18258953,2752.1,2751.8,0.029168]
[1646821484527,1.18258953,2752.1,2751.6,0.029168]
[1646821484829,0.95044294,2752.4,2752.1,0.41489082]
[1646821494078,0.95044294,2752.4,2752.2,0.029168]
[1646821494480,0.95044294,2752.4,2752.1,0.44405882]
[1646821494680,0.95044294,2752.4,2752.2,0.029168]
[1646821494879,3.0,2752.5,2752.2,0.029168]
[1646821495082,1.015751,2752.9,2752.2,0.058336]
[1646821495281,3.0,2752.8,2752.4,0.029168]
[1646821495484,3.0,2752.8,2752.5,0.029168]
[1646821495683,3.0,2752.8,2752.6,0.029168]
[1646821496585,1.00308652,2752.7,2752.5,0.029168]
[1646821496883,1.00308652,2752.7,2752.4,0.029168]
[1646821497285,1.00308652,2752.7,2752.3,0.029168]
[1646821497484,1.00308652,2752.7,2752.2,0.029168]
[1646821497933,1.00308652,2752.7,2752.3,0.029168]
[1646821498536,1.00308652,2752.7,2752.3,0.058336]
[1646821498734,1.00308652,2752.7,2752.4,0.029168]
[1646821501242,3.3,2752.8,2752.5,0.029168]
[1646821501243,3.0,2752.8,2752.5,0.029168]
[1646821501447,3.13505994,2753.2,2752.6,0.029168]
[1646821501694,0.18955994,2753.2,2752.9,0.029168]
[1646821503293,0.18955994,2753.2,2752.8,0.029168]
[1646821505835,0.18955994,2753.2,2752.8,0.02772307]
[1646821508742,0.18955994,2753.2,2752.9,0.029168]
[1646821508938,3.0,2753.5,2753.0,0.029168]
[1646821513336,1.14244439,2753.2,2752.9,0.029168]
[1646821513538,1.14244439,2753.2,2752.5,0.029168]
[1646821513944,4.14244439,2753.2,2752.5,0.029168]
[1646821514140,4.14244439,2753.2,2752.6,0.029168]
[1646821515341,4.14244439,2753.2,2752.7,0.029168]
[1646821516445,0.88926188,2753.5,2753.0,0.029168]
[1646821517093,0.88926188,2753.4,2753.0,0.029168]
[1646821517293,0.88926188,2753.5,2752.8,0.029168]
[1646821517493,0.89195463,2753.4,2752.8,0.029168]
[1646821517694,1.78121651,2753.4,2752.8,0.029168]
[1646821518097,0.89195463,2753.4,2752.8,0.029168]
[1646821518494,0.88926188,2753.5,2752.9,0.029168]
[1646821519294,3.18951075,2753.6,2753.0,0.029168]
[1646821519295,4.07877263,2753.6,2753.0,0.029168]
[1646821519900,4.07877263,2753.6,2753.1,0.029168]
[1646821521449,1.07877263,2753.6,2753.3,0.029168]
[1646821521653,0.18951075,2753.6,2753.3,0.029168]
[1646821521949,1.07877263,2753.6,2753.1,0.029168]
[1646821522349,0.88926188,2753.5,2753.1,0.029168]
[1646821522550,0.88926188,2753.5,2752.5,1.8167195]
[1646821522551,3.5,2753.4,2752.6,0.1816]
[1646821522753,0.88926188,2753.2,2752.4,0.029168]
[1646821522952,0.88926188,2753.1,2752.3,0.029168]
[1646821523150,0.88926188,2753.1,2752.4,1.49739662]
[1646821523367,3.0,2753.0,2752.4,1.52656462]
[1646821523552,3.89930917,2753.0,2752.5,1.49739662]
[1646821523750,4.19930917,2753.0,2752.5,1.49739662]
[1646821524382,3.3,2753.0,2752.5,1.49739662]
[1646821525587,3.3,2753.0,2752.5,1.52656462]
[1646821525887,3.3,2753.0,2752.5,0.029168]
[1646821526086,3.0,2753.0,2752.5,0.02805449]
[1646821526289,3.0,2753.0,2752.6,1.5264909]
[1646821526485,3.0,2753.0,2752.6,0.029168]
[1646821527487,4.5,2753.3,2752.7,1.52642632]
[1646821527488,0.88926188,2753.3,2752.7,1.52642632]
[1646821527687,2.96842948,2753.6,2752.8,0.029168]
[1646821527688,0.88926188,2753.4,2752.8,0.029168]
[1646821527936,3.0,2753.3,2752.8,0.029168]
[1646821531444,3.88926188,2753.3,2752.8,0.029168]
[1646821531690,4.48220291,2753.5,2752.7,0.029168]
[1646821531691,0.95146329,2752.9,2752.7,0.029168]
[1646821531894,0.95146329,2752.9,2752.6,0.029168]
[1646821537541,3.3,2753.0,2752.6,0.029168]
[1646821538141,3.0,2753.0,2752.6,0.029168]
[1646821539992,3.0,2753.0,2752.7,0.029168]
[1646821540193,3.0,2753.0,2752.7,0.058336]
[1646821541092,3.0,2753.0,2752.8,1.49716828]
[1646821541897,1.57361541,2753.3,2752.8,1.52633628]
[1646821541898,0.57361541,2753.3,2752.8,1.52633628]
[1646821542093,4.07361541,2753.3,2752.9,0.029168]
[1646821542495,0.88915609,2753.0,2752.9,0.029168]
[1646821542694,0.88915609,2753.0,2752.8,0.029168]
[1646821542932,0.88915609,2752.9,2752.8,0.029168]
[1646821543132,1.22173389,2753.0,2752.7,0.029168]
[1646821543931,3.0,2752.9,2752.7,0.029168]
[1646821545233,2.52173389,2753.0,2752.4,0.029168]
[1646821545437,3.0,2752.6,2752.5,1.52641069]
[1646821545637,3.0,2752.6,2752.5,1.49724269]
[1646821546037,3.0,2752.6,2752.5,1.52641069]
[1646821549391,3.0,2752.6,2752.5,1.49724269]
[1646821549793,3.0,2752.6,2752.3,0.029168]
[1646821549794,3.0,2752.6,2752.4,1.49724269]
[1646821549994,3.0,2752.6,2752.5,1.49724269]
[1646821550199,3.0,2752.6,2752.5,1.49583448]
[1646821550200,4.0,2752.6,2752.5,1.49583448]
[1646821550438,0.3,2752.8,2752.3,0.029168]
[1646821550635,3.0,2752.4,2752.3,0.029168]
[1646821550835,3.0,2752.4,2752.2,0.029168]
[1646821551036,3.95027811,2752.4,2752.2,0.029168]
[1646821552437,3.0,2752.4,2752.2,0.029168]
[1646821556695,4.5,2752.9,2752.3,0.029168]
[1646821556896,3.0,2752.7,2752.4,0.029168]
[1646821558143,2.99887021,2752.7,2752.4,0.029168]
[1646821559939,0.37916237,2752.6,2752.4,0.029168]
[1646821560339,2.99887021,2752.7,2752.4,0.029168]
[1646821560545,2.99887021,2752.7,2752.5,0.029168]
[1646821563190,0.88952138,2753.1,2752.6,0.029168]
[1646821563397,6.00599288,2753.3,2752.8,0.029168]
[1646821563398,0.88952138,2753.2,2752.8,0.029168]
[1646821563591,5.60613219,2753.3,2752.9,0.029168]
[1646821563790,4.44073219,2753.3,2752.9,0.029168]
[1646821568378,4.44073219,2753.3,2752.8,0.029168]
[1646821568579,4.44073219,2753.3,2752.7,0.90866]
[1646821570189,4.44073219,2753.3,2752.8,1.49692002]
[1646821570592,0.88952138,2753.2,2752.8,1.49692002]
[1646821571200,4.46391988,2753.3,2752.8,1.49692002]
[1646821572196,0.88952138,2753.2,2752.8,1.49692002]
[1646821572396,4.46391988,2753.3,2752.8,1.49692002]
[1646821575645,4.46391988,2753.3,2752.9,1.49692002]
[1646821575944,4.46391988,2753.3,2752.5,1.2471]
[1646821576144,4.46391988,2753.3,2752.6,1.49702308]
[1646821576145,0.88952138,2753.2,2752.6,1.49702308]
[1646821576347,3.88792138,2753.2,2752.6,1.49702308]
[1646821576615,0.88952138,2753.1,2752.6,1.49702308]
[1646821577004,0.88952138,2753.0,2752.6,1.49702308]
[1646821577202,0.88952138,2753.0,2752.1,3.47118952]
[1646821577203,2.09849138,2753.0,2752.2,1.2471]
[1646821577402,1.16201477,2752.6,2752.3,1.49718286]
[1646821577802,1.16201477,2752.6,2752.4,1.49718286]
[1646821578002,1.16201477,2752.6,2752.5,1.49718286]
[1646821578404,5.99653615,2752.6,2751.6,0.3634]
[1646821578703,3.79653615,2752.6,2751.7,1.4974495]
[1646821579010,3.79653615,2752.6,2751.8,1.4974495]
[1646821579202,2.9984,2752.2,2751.9,1.4974495]
[1646821579402,2.9984,2752.2,2752.0,1.4974495]
[1646821579604,2.9984,2752.2,2752.1,1.4974495]
[1646821579605,3.2984,2752.2,2752.1,1.4974495]
[1646821579804,3.2984,2752.2,2751.5,1.21791377]
[1646821579805,3.2984,2752.2,2751.6,1.4974495]
[1646821581039,3.2984,2752.2,2751.7,1.4974495]
[1646821581240,3.2984,2752.2,2751.8,1.4974495]
[1646821581441,3.2984,2752.2,2751.9,1.4974495]
[1646821581742,3.2984,2752.2,2752.0,1.4974495]
[1646821581939,3.2984,2752.2,2751.4,1.1635]
[1646821582139,3.2984,2752.2,2751.5,1.49750896]
[1646821582340,2.9984,2752.2,2751.5,4.99750896]
[1646821582542,2.71354907,2752.6,2751.6,1.49750896]
[1646821582740,2.9984,2752.5,2751.6,1.49750896]
[1646821584391,2.9984,2752.5,2751.7,3.5]
[1646821584590,2.9984,2752.5,2751.8,1.49750896]
[1646821584992,0.0254281,2752.2,2751.9,1.49750896]
[1646821585191,0.0254281,2752.2,2752.0,1.49750896]
[1646821585597,0.0254281,2752.2,2752.1,1.49750896]
[1646821585798,0.0254281,2752.2,2751.4,5.64025272]
[1646821585998,0.0254281,2752.2,2751.5,1.49749497]
[1646821586396,3.0238281,2752.2,2751.5,1.49749497]
[1646821586596,3.3238281,2752.2,2751.5,1.49749497]
[1646821587004,1.3254281,2752.2,2751.5,1.49749497]
[1646821587199,0.3254281,2752.2,2751.5,1.49749497]
[1646821587697,2.9984,2751.9,2751.5,1.49749497]
[1646821588342,2.9984,2751.9,2751.6,1.49749497]
[1646821588543,2.9984,2751.9,2751.1,1.13833518]
[1646821588744,2.9984,2751.9,2751.1,0.01667484]
[1646821588745,4.2984,2751.9,2751.1,0.01667484]
[1646821588943,0.8075,2751.8,2751.1,0.01667484]
[1646821589142,2.9984,2751.4,2751.1,0.01667484]
[1646821589343,3.2984,2751.4,2750.7,0.00273035]
[1646821589545,3.2984,2751.4,2750.6,3.5]
[1646821589741,4.38845765,2751.4,2750.9,0.01667577]
[1646821590544,4.38845765,2751.4,2750.5,7.94374885]
[1646821590545,2.9984,2751.4,2750.5,7.94374885]
[1646821590745,2.9984,2751.4,2750.6,0.0208466]
[1646821590943,0.029168,2751.6,2750.6,0.69294436]
[1646821591143,0.029168,2751.6,2750.7,3.8625]
[1646821591601,0.029168,2751.6,2751.2,0.9024763]